[Event "German-ch Women 2024"]
[Site "Ostfildern"]
[Date "2024.08.21"]
[Round "4.6"]
[White "Staerk, Elisa"]
[Black "Moeller, Hannah"]
[Result "1-0"]
[ECO "A73"]
[WhiteElo "2002"]
[BlackElo "1845"]
[Annotator "NA RC"]
[PlyCount "89"]
[EventDate "2024.08.16"]
[EventType "tourn"]
[EventCountry "GER"]
[SourceTitle "playchess.com"]
[Source "ChessBase"]
[SourceQuality "1"]
[TimeControl "40/5400+30:1800+30"]

1. d4 {[%emt 0:00:02]} g6 {[%emt 0:00:03]} 2. Nf3 {[%emt 0:00:04]} Bg7 {[%emt 0:00:06]} 3. c4 {[%emt 0:00:04]} c5 {[%emt 0:00:09]} 4. d5 {[%emt 0:00:50]} Nf6 {[%emt 0:00:28]} 5. Nc3 {[%emt 0:00:07]} O-O {[%emt 0:00:18]} 6. e4 {[%emt 0:00:05]} d6 {[%emt 0:00:03]} 7. Be2 {[%emt 0:00:05]} e6 {[%emt 0:00:57]} 8. O-O {[%emt 0:00:25]} exd5 {[%emt 0:00:24]} 9. cxd5 {[%emt 0:00:24]} Nbd7 {[%emt 0:00:43]} 10. Bf4 {[%emt 0:02:55]} Qb6 {[%emt 0:02:06]} 11. Qc2 {[%emt 0:06:25]} a6 {[%emt 0:03:30]} 12. Nd2 {[%emt 0:01:08]} Qc7 {[%emt 0:05:22]} 13. a4 {[%emt 0:02:35]} b6 {[%emt 0:00:54]} 14. Nc4 {[%emt 0:02:03]} Ne5 {[%emt 0:01:58]} 15. Bxe5 {[%emt 0:02:35]} dxe5 {[%emt 0:00:04]} 16. Rad1 {[%emt 0:03:35]} Ne8 {[%emt 0:04:15]} 17. d6 {[%emt 0:01:23]} Qb7 {[%emt 0:01:08]} 18. Nd5 {[%emt 0:00:43]} b5 {[%emt 0:04:37]} 19. Ne7+ {[%emt 0:00:28]} Kh8 {[%emt 0:00:15]} 20. Nxc8 {[%emt 0:00:12]} Nf6 {[%emt 0:03:46]} 21. N4b6 {[%emt 0:02:00]} Raxc8 {[%emt 0:00:41]} 22. Nxc8 {[%emt 0:00:10]} Rxc8 {[%emt 0:00:04]} 23. axb5 {[%emt 0:02:13]} axb5 {[%emt 0:00:07]} 24. Rfe1 {[%emt 0:04:04]} Nd7 {[%emt 0:01:49]} 25. Bg4 {[%emt 0:01:28]} Bf8 {[%emt 0:01:15]} 26. Bxd7 {[%emt 0:01:02]} Qxd7 {[%emt 0:00:07]} 27. Rd5 {[%emt 0:00:20]} f6 {[%emt 0:02:27]} 28. Rxc5 {[%emt 0:01:36]} Rxc5 {[%emt 0:02:05]} 29. Qxc5 {[%emt 0:00:05]} Bxd6 {[%emt 0:00:30]} 30. Qd5 {[%emt 0:00:27]} Qc7 {[%emt 0:01:14]} 31. Qxb5 {[%emt 0:00:59]} Bc5 {[%emt 0:01:47]} 32. g3 {[%emt 0:07:19]} Qd6 {[%emt 0:00:44]} 33. Kg2 {[%emt 0:00:58]} Qd4 {[%emt 0:00:53]} 34. Qe2 {[%emt 0:03:20]} Qb4 {[%emt 0:03:33]} 35. Rc1 {[%emt 0:02:53]} Bd4 {[%emt 0:01:48]} 36. Rc2 {[%emt 0:00:29]} Qb7 {[%emt 0:02:03]} 37. Qf3 {[%emt 0:02:25]} Kg7 {[%emt 0:03:06]} 38. b3 {[%emt 0:01:44]} f5 {[%emt 0:10:28]} 39. Re2 {[%emt 0:04:18]} fxe4 {[%emt 0:02:24]} 40. Rxe4 {[%emt 0:00:10]} Qb4 {[%emt 0:00:38]} 41. Re2 {[%emt 0:31:20]} Bc3 {[%emt 0:31:51]} 42. Rc2 {[%emt 0:01:11]} Bd4 {[%emt 0:00:32]} 43. Rc7+ {[%emt 0:00:24]} Kh6 {[%emt 0:00:12]} 44. Qg4 {[%emt 0:00:46]} Qxb3 {[%emt 0:01:16]} 45. Qh4# {[%emt 0:45:11]} 1-0

[Event "German-ch Women 2024"]
[Site "Ostfildern"]
[Date "2024.08.21"]
[Round "4.7"]
[White "Moutaqi, Sandra"]
[Black "Walker, Julia"]
[Result "1/2-1/2"]
[ECO "D40"]
[WhiteElo "1961"]
[BlackElo "1836"]
[Annotator "NA RC"]
[PlyCount "81"]
[EventDate "2024.08.16"]
[EventType "tourn"]
[EventCountry "GER"]
[SourceTitle "playchess.com"]
[Source "ChessBase"]
[SourceQuality "1"]
[TimeControl "40/5400+30:1800+30"]

1. d4 {[%emt 0:00:02]} d5 {[%emt 0:00:04]} 2. c4 {[%emt 0:00:09]} e6 {[%emt 0:00:05]} 3. Nf3 {[%emt 0:00:20]} c5 {[%emt 0:00:16]} 4. e3 {[%emt 0:01:30]} Nf6 {[%emt 0:00:49]} 5. Nc3 {[%emt 0:01:12]} Nc6 {[%emt 0:00:28]} 6. Be2 {[%emt 0:01:36]} cxd4 {[%emt 0:00:29]} 7. Nxd4 {[%emt 0:04:34]} Bd6 {[%emt 0:07:05]} 8. O-O {[%emt 0:02:23]} O-O {[%emt 0:01:48]} 9. a3 {[%emt 0:13:28]} a6 {[%emt 0:11:09]} 10. b4 {[%emt 0:02:30]} Nxd4 {[%emt 0:02:15]} 11. Qxd4 {[%emt 0:08:53]} Qc7 {[%emt 0:02:48]} 12. f4 {[%emt 0:05:54]} e5 {[%emt 0:10:33]} 13. Qd3 {[%emt 0:01:53]} dxc4 {[%emt 0:08:35]} 14. Qxc4 {[%emt 0:00:52]} exf4 {[%emt 0:02:47]} 15. Qxc7 {[%emt 0:02:58]} Bxc7 {[%emt 0:00:06]} 16. exf4 {[%emt 0:00:17]} Bb6+ {[%emt 0:01:17]} 17. Kh1 {[%emt 0:00:13]} Bd4 {[%emt 0:07:59]} 18. Bb2 {[%emt 0:00:56]} Bg4 {[%emt 0:00:46]} 19. Bxg4 {[%emt 0:02:26]} Nxg4 {[%emt 0:00:13]} 20. Nd1 {[%emt 0:00:15]} Rfd8 {[%emt 0:08:41]} 21. Bxd4 {[%emt 0:02:09]} Rxd4 {[%emt 0:00:44]} 22. h3 {[%emt 0:00:13]} Nf6 {[%emt 0:00:33]} 23. Nc3 {[%emt 0:02:00]} Rad8 {[%emt 0:06:56]} 24. Ne2 {[%emt 0:04:57]} Ne4 {[%emt 0:03:24]} 25. Nxd4 {[%emt 0:02:12]} Ng3+ {[%emt 0:00:30]} 26. Kg1 {[%emt 0:00:09]} Nxf1 {[%emt 0:00:14]} 27. Rxf1 {[%emt 0:05:46]} Rxd4 {[%emt 0:00:11]} 28. Rc1 {[%emt 0:00:10]} g6 {[%emt 0:04:10]} 29. Rc7 {[%emt 0:01:21]} b5 {[%emt 0:07:43]} 30. Rc6 {[%emt 0:01:45]} a5 {[%emt 0:01:03]} 31. bxa5 {[%emt 0:01:52]} Ra4 {[%emt 0:00:31]} 32. a6 {[%emt 0:00:58]} Rxa3 {[%emt 0:00:25]} 33. Rb6 {[%emt 0:00:32]} b4 {[%emt 0:00:21]} 34. Rxb4 {[%emt 0:01:38]} Rxa6 {[%emt 0:00:06]} 35. Re4 {[%emt 0:00:28]} h5 {[%emt 0:01:17]} 36. g3 {[%emt 0:00:59]} Ra2 {[%emt 0:00:37]} 37. Re3 {[%emt 0:00:58]} Kg7 {[%emt 0:00:17]} 38. Re1 {[%emt 0:01:25]} Kf6 {[%emt 0:03:30]} 39. Re3 {[%emt 0:00:26]} Rb2 {[%emt 0:01:35]} 40. Re1 {[%emt 0:00:36]} Rc2 {[%emt 0:06:43]} 41. Re5 {[%emt 0:31:36]} 1/2-1/2

[Event "German-ch Women 2024"]
[Site "Ostfildern"]
[Date "2024.08.21"]
[Round "4.8"]
[White "Wartenberg, Alissa"]
[Black "Just, Anita"]
[Result "0-1"]
[ECO "C18"]
[WhiteElo "1858"]
[BlackElo "1871"]
[Annotator "NA RC"]
[PlyCount "90"]
[EventDate "2024.08.16"]
[EventType "tourn"]
[EventCountry "GER"]
[SourceTitle "playchess.com"]
[Source "ChessBase"]
[SourceQuality "1"]
[TimeControl "40/5400+30:1800+30"]

1. e4 {[%emt 0:00:02]} e6 {[%emt 0:00:05]} 2. d4 {[%emt 0:00:07]} d5 {[%emt 0:00:04]} 3. Nc3 {[%emt 0:00:05]} Bb4 {[%emt 0:00:05]} 4. e5 {[%emt 0:00:19]} c5 {[%emt 0:00:15]} 5. a3 {[%emt 0:00:06]} Bxc3+ {[%emt 0:00:04]} 6. bxc3 {[%emt 0:00:04]} Qa5 {[%emt 0:00:16]} 7. Bd2 {[%emt 0:00:17]} Qa4 {[%emt 0:00:04]} 8. Nf3 {[%emt 0:01:47]} b6 {[%emt 0:01:42]} 9. Qb1 {[%emt 0:01:02]} Ba6 {[%emt 0:02:34]} 10. Qb3 {[%emt 0:10:21]} Qd7 {[%emt 0:09:18]} 11. Bxa6 {[%emt 0:00:56]} Nxa6 {[%emt 0:00:04]} 12. Rb1 {[%emt 0:09:20]} Rc8 {[%emt 0:12:26]} 13. O-O {[%emt 0:04:44]} Ne7 {[%emt 0:00:43]} 14. Rfd1 {[%emt 0:02:58]} O-O {[%emt 0:04:22]} 15. Bf4 {[%emt 0:20:17]} Nc6 {[%emt 0:13:06]} 16. c4 {[%emt 0:10:55]} Nxd4 {[%emt 0:09:24]} 17. Nxd4 {[%emt 0:00:20]} cxd4 {[%emt 0:00:05]} 18. Rxd4 {[%emt 0:00:45]} Nc5 {[%emt 0:11:30]} 19. Qg3 {[%emt 0:03:39]} Ne4 {[%emt 0:03:54]} 20. Qg4 {[%emt 0:06:55]} Rxc4 {[%emt 0:07:52]} 21. Rxc4 {[%emt 0:00:45]} dxc4 {[%emt 0:00:04]} 22. Bh6 {[%emt 0:02:29]} f5 {[%emt 0:00:34]} 23. exf6 {[%emt 0:00:54]} Nxf6 {[%emt 0:00:10]} 24. Qg5 {[%emt 0:02:13]} Ne4 {[%emt 0:04:53]} 25. Qe3 {[%emt 0:02:46]} Nxf2 {[%emt 0:04:58]} 26. Bg5 {[%emt 0:05:05]} Ng4 {[%emt 0:02:23]} 27. Qe4 {[%emt 0:00:38]} Nf6 {[%emt 0:01:25]} 28. Qxc4 {[%emt 0:03:19]} Qd5 {[%emt 0:03:54]} 29. Qxd5 {[%emt 0:00:28]} Nxd5 {[%emt 0:00:21]} 30. Re1 {[%emt 0:00:34]} Rf5 {[%emt 0:01:31]} 31. Bd2 {[%emt 0:01:59]} Kf7 {[%emt 0:00:55]} 32. Rf1 {[%emt 0:02:25]} Ke7 {[%emt 0:01:32]} 33. Rxf5 {[%emt 0:00:40]} exf5 {[%emt 0:00:04]} 34. Kf2 {[%emt 0:01:07]} Nf6 {[%emt 0:00:44]} 35. Bf4 {[%emt 0:00:51]} Ke6 {[%emt 0:01:39]} 36. Bb8 {[%emt 0:01:24]} a6 {[%emt 0:00:36]} 37. Bc7 {[%emt 0:00:55]} Nd5 {[%emt 0:00:56]} 38. Bd8 {[%emt 0:00:52]} b5 {[%emt 0:00:16]} 39. Kf3 {[%emt 0:00:14]} Nc3 {[%emt 0:00:37]} 40. Ba5 {[%emt 0:00:40]} Nd5 {[%emt 0:00:45]} 41. g3 {[%emt 0:31:16]} Ke5 {[%emt 0:04:37]} 42. Bd2 {[%emt 0:00:00]} Kd4 {[%emt 0:07:39]} 43. Ba5 {[%emt 0:00:00]} Kc4 {[%emt 0:00:47]} 44. Ke2 {[%emt 0:00:00]} b4 {[%emt 0:06:25]} 45. axb4 {[%emt 0:00:00]} Nxb4 {[%emt 0:00:06]} 0-1

[Event "German-ch Women 2024"]
[Site "Ostfildern"]
[Date "2024.08.21"]
[Round "4.9"]
[White "Albayrak, Aylin"]
[Black "Koeberl, Christiane"]
[Result "1-0"]
[ECO "A52"]
[WhiteElo "1741"]
[BlackElo "1745"]
[Annotator "NA RC"]
[PlyCount "77"]
[EventDate "2024.08.16"]
[EventType "tourn"]
[EventCountry "GER"]
[SourceTitle "playchess.com"]
[Source "ChessBase"]
[SourceQuality "1"]
[TimeControl "40/5400+30:1800+30"]

1. d4 {[%emt 0:00:01]} Nf6 {[%emt 0:00:24]} 2. c4 {[%emt 0:00:09]} e5 {[%emt 0:00:06]} 3. dxe5 {[%emt 0:00:19]} Ng4 {[%emt 0:00:03]} 4. Nf3 {[%emt 0:01:01]} Bc5 {[%emt 0:00:28]} 5. e3 {[%emt 0:00:34]} Bb4+ {[%emt 0:00:07]} 6. Bd2 {[%emt 0:00:27]} Bxd2+ {[%emt 0:01:52]} 7. Qxd2 {[%emt 0:00:43]} Nc6 {[%emt 0:00:27]} 8. Nc3 {[%emt 0:03:04]} Ngxe5 {[%emt 0:00:34]} 9. Be2 {[%emt 0:00:34]} d6 {[%emt 0:00:46]} 10. O-O {[%emt 0:02:56]} O-O {[%emt 0:00:49]} 11. Rad1 {[%emt 0:02:03]} Be6 {[%emt 0:01:49]} 12. Nd5 {[%emt 0:01:23]} a5 {[%emt 0:10:41]} 13. a3 {[%emt 0:02:57]} a4 {[%emt 0:00:42]} 14. Nd4 {[%emt 0:01:20]} Na5 {[%emt 0:03:37]} 15. Qc3 {[%emt 0:03:28]} c6 {[%emt 0:06:26]} 16. Nxe6 {[%emt 0:01:42]} fxe6 {[%emt 0:00:02]} 17. Nf4 {[%emt 0:00:35]} Qe7 {[%emt 0:01:21]} 18. c5 {[%emt 0:01:01]} Nf7 {[%emt 0:02:29]} 19. cxd6 {[%emt 0:02:29]} Nxd6 {[%emt 0:00:03]} 20. Qb4 {[%emt 0:04:47]} Rfd8 {[%emt 0:03:19]} 21. Qxa4 {[%emt 0:03:07]} e5 {[%emt 0:03:58]} 22. Nh5 {[%emt 0:03:12]} Qe6 {[%emt 0:06:58]} 23. Qh4 {[%emt 0:03:46]} Re8 {[%emt 0:06:07]} 24. Rd3 {[%emt 0:02:51]} Nac4 {[%emt 0:01:44]} 25. Rb1 {[%emt 0:07:59]} Qg6 {[%emt 0:03:41]} 26. Rdd1 {[%emt 0:02:33]} Ra4 {[%emt 0:02:41]} 27. Qh3 {[%emt 0:05:51]} Nd2 {[%emt 0:03:04]} 28. Rbc1 {[%emt 0:01:41]} N2e4 {[%emt 0:04:48]} 29. Bd3 {[%emt 0:06:41]} Qf7 {[%emt 0:02:11]} 30. Bxe4 {[%emt 0:13:43]} Nxe4 {[%emt 0:00:23]} 31. Qf3 {[%emt 0:03:09]} Qe7 {[%emt 0:07:15]} 32. b4 {[%emt 0:03:56]} Ng5 {[%emt 0:01:11]} 33. Qg4 {[%emt 0:01:00]} Rxa3 {[%emt 0:00:42]} 34. Rd7 {[%emt 0:00:30]} Nf3+ {[%emt 0:11:48]} 35. gxf3 {[%emt 0:00:55]} Qf8 {[%emt 0:00:20]} 36. Rxg7+ {[%emt 0:01:41]} Kh8 {[%emt 0:00:05]} 37. Kh1 {[%emt 0:03:35]} Ra2 {[%emt 0:01:00]} 38. Rg1 {[%emt 0:01:54]} Rxf2 {[%emt 0:01:19]} 39. Nf6 {[%emt 0:10:23]} 1-0

[Event "German-ch Women 2024"]
[Site "Ostfildern"]
[Date "2024.08.21"]
[Round "4.10"]
[White "Sokyrko, Sofiia"]
[Black "Noll, Sonja"]
[Result "0-1"]
[ECO "B03"]
[WhiteElo "1585"]
[BlackElo "1810"]
[Annotator "NA RC"]
[PlyCount "108"]
[EventDate "2024.08.16"]
[EventType "tourn"]
[EventCountry "GER"]
[SourceTitle "playchess.com"]
[Source "ChessBase"]
[SourceQuality "1"]
[TimeControl "40/5400+30:1800+30"]

1. e4 {[%emt 0:00:19]} Nf6 {[%emt 0:00:04]} 2. e5 {[%emt 0:00:55]} Nd5 {[%emt 0:00:06]} 3. d4 {[%emt 0:00:47]} d6 {[%emt 0:00:19]} 4. Bc4 {[%emt 0:00:52]} Nb6 {[%emt 0:02:08]} 5. Bb3 {[%emt 0:00:50]} dxe5 {[%emt 0:02:38]} 6. Qh5 {[%emt 0:02:44]} e6 {[%emt 0:02:44]} 7. dxe5 {[%emt 0:00:55]} Nc6 {[%emt 0:01:33]} 8. Nf3 {[%emt 0:02:39]} g6 {[%emt 0:03:18]} 9. Qg4 {[%emt 0:01:15]} Bg7 {[%emt 0:01:23]} 10. Bg5 {[%emt 0:02:18]} Qd7 {[%emt 0:08:18]} 11. Qe4 {[%emt 0:05:32]} h6 {[%emt 0:07:46]} 12. Be3 {[%emt 0:03:30]} Na5 {[%emt 0:03:24]} 13. Nc3 {[%emt 0:01:53]} Nxb3 {[%emt 0:01:51]} 14. axb3 {[%emt 0:00:16]} Qc6 {[%emt 0:04:44]} 15. Qxc6+ {[%emt 0:06:41]} bxc6 {[%emt 0:02:28]} 16. Bxb6 {[%emt 0:00:37]} cxb6 {[%emt 0:00:20]} 17. Ne4 {[%emt 0:00:06]} Ke7 {[%emt 0:03:33]} 18. O-O {[%emt 0:00:29]} c5 {[%emt 0:05:22]} 19. Rfd1 {[%emt 0:01:00]} Bb7 {[%emt 0:01:40]} 20. Ned2 {[%emt 0:00:17]} Rhd8 {[%emt 0:02:11]} 21. Re1 {[%emt 0:00:18]} f6 {[%emt 0:02:29]} 22. Nc4 {[%emt 0:01:03]} fxe5 {[%emt 0:03:16]} 23. Nfxe5 {[%emt 0:00:33]} g5 {[%emt 0:01:46]} 24. g3 {[%emt 0:04:06]} Rd5 {[%emt 0:07:05]} 25. f4 {[%emt 0:00:19]} gxf4 {[%emt 0:00:56]} 26. gxf4 {[%emt 0:00:08]} Bf6 {[%emt 0:03:50]} 27. f5 {[%emt 0:00:45]} Rg8+ {[%emt 0:03:00]} 28. Kf1 {[%emt 0:00:10]} Rd4 {[%emt 0:08:23]} 29. Rxa7 {[%emt 0:00:48]} Rf4+ {[%emt 0:01:31]} 30. Ke2 {[%emt 0:00:07]} Re4+ {[%emt 0:01:17]} 31. Kd1 {[%emt 0:00:07]} Rd8+ {[%emt 0:00:30]} 32. Nd3 {[%emt 0:00:27]} Rxe1+ {[%emt 0:01:16]} 33. Kxe1 {[%emt 0:00:07]} Bh4+ {[%emt 0:00:31]} 34. Ke2 {[%emt 0:00:09]} Rd7 {[%emt 0:00:33]} 35. fxe6 {[%emt 0:00:19]} Bf3+ {[%emt 0:00:35]} 36. Kxf3 {[%emt 0:00:25]} Rxa7 {[%emt 0:00:21]} 37. Nxb6 {[%emt 0:00:07]} Ra1 {[%emt 0:04:10]} 38. Nxc5 {[%emt 0:00:40]} Rf1+ {[%emt 0:03:00]} 39. Ke4 {[%emt 0:01:13]} Rf2 {[%emt 0:01:44]} 40. Kd3 {[%emt 0:01:26]} Rxh2 {[%emt 0:01:11]} 41. Nd5+ {[%emt 0:31:19]} Kd6 {[%emt 0:31:20]} 42. e7 {[%emt 0:00:24]} Bxe7 {[%emt 0:00:57]} 43. Nxe7 {[%emt 0:00:07]} Kxc5 {[%emt 0:00:23]} 44. Nf5 {[%emt 0:00:11]} h5 {[%emt 0:00:39]} 45. c3 {[%emt 0:01:41]} Rxb2 {[%emt 0:00:44]} 46. b4+ {[%emt 0:00:10]} Kb5 {[%emt 0:02:05]} 47. Nd4+ {[%emt 0:00:48]} Kb6 {[%emt 0:00:28]} 48. Nf3 {[%emt 0:00:58]} Rg2 {[%emt 0:01:03]} 49. Kd4 {[%emt 0:00:16]} Rg3 {[%emt 0:00:39]} 50. Ke4 {[%emt 0:00:48]} Kb5 {[%emt 0:02:13]} 51. Kf4 {[%emt 0:00:51]} Rg8 {[%emt 0:01:36]} 52. c4+ {[%emt 0:00:28]} Kxb4 {[%emt 0:00:22]} 53. Kf5 {[%emt 0:02:51]} Kxc4 {[%emt 0:00:43]} 54. Nh4 {[%emt 0:00:07]} Kd4 {[%emt 0:00:00]} 0-1

[Event "German-ch Women 2024"]
[Site "Ostfildern"]
[Date "2024.08.22"]
[Round "5.1"]
[White "Kostak, Tetyana"]
[Black "Braun, Kristin"]
[Result "1-0"]
[ECO "C00"]
[WhiteElo "2094"]
[BlackElo "2001"]
[Annotator "RC"]
[PlyCount "103"]
[EventDate "2024.08.16"]
[EventType "tourn"]
[EventCountry "GER"]
[SourceTitle "playchess.com"]
[Source "ChessBase"]
[SourceQuality "1"]
[TimeControl "40/5400+30:1800+30"]

1. Nf3 {[%emt 0:00:09]} c5 {[%emt 0:00:42]} 2. e4 {[%emt 0:00:19]} Nc6 {[%emt 0:00:19]} 3. d3 {[%emt 0:02:39]} g6 {[%emt 0:01:09]} 4. c3 {[%emt 0:01:30]} d5 {[%emt 0:01:58]} 5. Nbd2 {[%emt 0:00:37]} Bg7 {[%emt 0:01:45]} 6. Be2 {[%emt 0:00:46]} e6 {[%emt 0:04:52]} 7. O-O {[%emt 0:02:39]} Nge7 {[%emt 0:00:10]} 8. Re1 {[%emt 0:06:21]} O-O {[%emt 0:00:24]} 9. Bf1 {[%emt 0:00:48]} Qc7 {[%emt 0:02:47]} 10. g3 {[%emt 0:03:03]} b6 {[%emt 0:01:37]} 11. Bg2 {[%emt 0:03:38]} Bb7 {[%emt 0:04:27]} 12. Qe2 {[%emt 0:02:56]} d4 {[%emt 0:07:28]} 13. c4 {[%emt 0:03:17]} e5 {[%emt 0:05:26]} 14. h4 {[%emt 0:00:57]} Bc8 {[%emt 0:05:24]} 15. Nf1 {[%emt 0:00:47]} Bd7 {[%emt 0:08:47]} 16. h5 {[%emt 0:01:14]} Rae8 {[%emt 0:51:15]} 17. hxg6 {[%emt 1:07:20]} hxg6 {[%emt 0:00:30]} 18. Nh4 {[%emt 0:00:30]} f6 {[%emt 0:00:30]} 19. Nh2 {[%emt 0:00:30]} Qc8 {[%emt 0:00:30]} 20. Bd2 {[%emt 0:00:00]} Kf7 {[%emt 0:00:30]} 21. Bf3 {[%emt 0:01:00]} Rh8 {[%emt 0:00:30]} 22. Bg4 {[%emt 0:00:30]} Nd8 {[%emt 0:00:30]} 23. Bxd7 {[%emt 0:00:00]} Qxd7 {[%emt 0:00:00]} 24. Qg4 {[%emt 0:01:00]} Ne6 {[%emt 0:01:00]} 25. Rf1 {[%emt 0:00:30]} Rh7 {[%emt 0:00:30]} 26. f4 {[%emt 0:00:30]} exf4 {[%emt 0:00:30]} 27. Bxf4 {[%emt 0:00:30]} Reh8 {[%emt 0:00:30]} 28. Rf2 {[%emt 0:00:30]} Rh5 {[%emt 0:00:30]} 29. Bd2 {[%emt 0:00:30]} Qd6 {[%emt 0:00:30]} 30. N2f3 {[%emt 0:00:30]} Ke8 {[%emt 0:00:30]} 31. Re1 {[%emt 0:00:00]} Kd8 {[%emt 0:00:00]} 32. Kf1 {[%emt 0:00:00]} g5 {[%emt 0:00:00]} 33. e5 {[%emt 0:00:00]} fxe5 {[%emt 0:00:00]} 34. Bxg5 {[%emt 0:00:00]} Kc7 {[%emt 0:00:00]} 35. Bxe7 {[%emt 0:00:00]} Qxe7 {[%emt 0:00:00]} 36. Ng6 {[%emt 0:00:00]} Rh1+ {[%emt 0:00:00]} 37. Ng1 {[%emt 0:00:00]} Qe8 {[%emt 0:00:00]} 38. Nxh8 {[%emt 0:00:00]} Rxh8 {[%emt 0:00:00]} 39. Nf3 {[%emt 0:00:00]} Kd6 {[%emt 0:00:06]} 40. Nh4 {[%emt 0:00:00]} Rg8 {[%emt 0:00:30]} 41. Nf5+ {[%emt 0:17:57]} Kd7 {[%emt 0:30:30]} 42. Qe4 {[%emt 0:00:30]} Nc7 {[%emt 0:00:30]} 43. Ke2 {[%emt 0:00:30]} Bf6 {[%emt 0:00:30]} 44. Rh1 {[%emt 0:00:30]} Rh8 {[%emt 0:00:30]} 45. Rfh2 {[%emt 0:00:30]} Rxh2+ {[%emt 0:00:30]} 46. Rxh2 {[%emt 0:00:30]} Qg8 {[%emt 0:00:30]} 47. Rh6 {[%emt 0:00:30]} Qf7 {[%emt 0:00:30]} 48. Nh4 {[%emt 0:00:30]} Ne8 {[%emt 0:00:30]} 49. Rh7 {[%emt 0:00:30]} Ng7 {[%emt 0:00:30]} 50. Nf5 {[%emt 0:00:30]} Kc7 {[%emt 0:00:30]} 51. Nxg7 {[%emt 0:00:30]} Bxg7 {[%emt 0:00:30]} 52. Qg4 {[%emt 0:00:30]} 1-0

[Event "German-ch Women 2024"]
[Site "Ostfildern"]
[Date "2024.08.22"]
[Round "5.2"]
[White "Miljkovic, Jovana"]
[Black "Bursan, Ana-Maria"]
[Result "1-0"]
[ECO "D20"]
[WhiteElo "2021"]
[BlackElo "1719"]
[Annotator "RC"]
[PlyCount "91"]
[EventDate "2024.08.16"]
[EventType "tourn"]
[EventCountry "GER"]
[SourceTitle "playchess.com"]
[Source "ChessBase"]
[SourceQuality "1"]
[TimeControl "40/5400+30:1800+30"]

1. Nf3 {[%emt 0:00:02]} d5 {[%emt 0:00:14]} 2. d4 {[%emt 0:00:04]} c5 {[%emt 0:00:39]} 3. c4 {[%emt 0:00:21]} dxc4 {[%emt 0:00:22]} 4. e4 {[%emt 0:00:48]} cxd4 {[%emt 0:01:07]} 5. Qxd4 {[%emt 0:00:29]} Qxd4 {[%emt 0:01:22]} 6. Nxd4 {[%emt 0:00:05]} a6 {[%emt 0:00:58]} 7. Bxc4 {[%emt 0:01:09]} e5 {[%emt 0:01:59]} 8. Nf3 {[%emt 0:01:24]} Nc6 {[%emt 0:03:14]} 9. Nc3 {[%emt 0:04:36]} Be6 {[%emt 0:09:18]} 10. Bxe6 {[%emt 0:05:23]} fxe6 {[%emt 0:00:26]} 11. O-O {[%emt 0:03:43]} Nf6 {[%emt 0:05:01]} 12. Be3 {[%emt 0:05:09]} Bb4 {[%emt 0:07:18]} 13. Ng5 {[%emt 0:05:30]} Nd4 {[%emt 0:10:18]} 14. a3 {[%emt 0:08:23]} Bxc3 {[%emt 0:06:14]} 15. bxc3 {[%emt 0:00:25]} Nc2 {[%emt 0:04:22]} 16. Rab1 {[%emt 0:05:29]} Nxe3 {[%emt 0:04:21]} 17. fxe3 {[%emt 0:00:08]} b5 {[%emt 0:02:40]} 18. Nxe6 {[%emt 0:02:34]} Ra7 {[%emt 0:04:04]} 19. Nxg7+ {[%emt 0:02:09]} Ke7 {[%emt 0:08:55]} 20. Rf5 {[%emt 0:12:46]} Nxe4 {[%emt 0:04:06]} 21. Rxe5+ {[%emt 0:00:48]} Kd6 {[%emt 0:01:11]} 22. Rxe4 {[%emt 0:00:28]} Rxg7 {[%emt 0:00:18]} 23. Rd1+ {[%emt 0:00:53]} Kc5 {[%emt 0:00:47]} 24. Rdd4 {[%emt 0:00:37]} Rf8 {[%emt 0:02:11]} 25. Re5+ {[%emt 0:00:51]} Kc6 {[%emt 0:01:35]} 26. Re6+ {[%emt 0:00:44]} Kc5 {[%emt 0:02:40]} 27. Rxa6 {[%emt 0:00:49]} Rgf7 {[%emt 0:00:25]} 28. h4 {[%emt 0:00:13]} Rf1+ {[%emt 0:00:46]} 29. Kh2 {[%emt 0:00:05]} Re1 {[%emt 0:01:19]} 30. e4 {[%emt 0:02:01]} Rf2 {[%emt 0:02:50]} 31. Rd5+ {[%emt 0:00:37]} Kc4 {[%emt 0:00:13]} 32. Rc6+ {[%emt 0:00:14]} Kb3 {[%emt 0:00:32]} 33. Rxb5+ {[%emt 0:00:33]} Kc2 {[%emt 0:00:22]} 34. Rf5 {[%emt 0:01:12]} Rfe2 {[%emt 0:00:44]} 35. e5 {[%emt 0:00:50]} Rxe5 {[%emt 0:03:26]} 36. Rxe5 {[%emt 0:00:42]} Rxe5 {[%emt 0:00:11]} 37. Rh6 {[%emt 0:06:45]} Re7 {[%emt 0:01:03]} 38. c4 {[%emt 0:00:25]} Kb3 {[%emt 0:00:14]} 39. c5 {[%emt 0:00:20]} Kxa3 {[%emt 0:00:09]} 40. c6 {[%emt 0:01:32]} Kb4 {[%emt 0:00:27]} 41. Rd6 {[%emt 0:31:13]} Rc7 {[%emt 0:31:02]} 42. Rd7 {[%emt 0:00:23]} Rxc6 {[%emt 0:00:14]} 43. Rxh7 {[%emt 0:00:05]} Kc5 {[%emt 0:00:45]} 44. Rd7 {[%emt 0:00:12]} Rh6 {[%emt 0:00:25]} 45. Kh3 {[%emt 0:00:09]} Kc6 {[%emt 0:00:10]} 46. Rd1 {[%emt 0:00:09]} 1-0

[Event "German-ch Women 2024"]
[Site "Ostfildern"]
[Date "2024.08.22"]
[Round "5.3"]
[White "Mader, Lena"]
[Black "Bluebaum, Johanna"]
[Result "0-1"]
[ECO "A13"]
[WhiteElo "1876"]
[BlackElo "1994"]
[Annotator "RC"]
[PlyCount "82"]
[EventDate "2024.08.16"]
[EventType "tourn"]
[EventCountry "GER"]
[SourceTitle "playchess.com"]
[Source "ChessBase"]
[SourceQuality "1"]
[TimeControl "40/5400+30:1800+30"]

1. c4 {[%emt 0:00:02]} e6 {[%emt 0:00:14]} 2. g3 {[%emt 0:00:54]} Nf6 {[%emt 0:00:12]} 3. Bg2 {[%emt 0:00:15]} d5 {[%emt 0:00:36]} 4. Nf3 {[%emt 0:00:15]} Bd6 {[%emt 0:00:28]} 5. O-O {[%emt 0:00:55]} O-O {[%emt 0:01:55]} 6. b3 {[%emt 0:00:39]} Nc6 {[%emt 0:00:20]} 7. Bb2 {[%emt 0:00:31]} d4 {[%emt 0:00:57]} 8. Nxd4 {[%emt 0:11:50]} Nxd4 {[%emt 0:00:19]} 9. Bxd4 {[%emt 0:00:06]} Bxg3 {[%emt 0:00:44]} 10. hxg3 {[%emt 0:00:07]} Qxd4 {[%emt 0:00:09]} 11. Na3 {[%emt 0:00:19]} c6 {[%emt 0:03:29]} 12. Nc2 {[%emt 0:15:07]} Qd6 {[%emt 0:06:43]} 13. d4 {[%emt 0:02:04]} e5 {[%emt 0:01:31]} 14. e4 {[%emt 0:05:06]} Bg4 {[%emt 0:02:37]} 15. f3 {[%emt 0:00:31]} Bh5 {[%emt 0:02:26]} 16. g4 {[%emt 0:03:37]} Bg6 {[%emt 0:05:19]} 17. d5 {[%emt 0:01:01]} Qc5+ {[%emt 0:03:55]} 18. Rf2 {[%emt 0:03:30]} cxd5 {[%emt 0:00:34]} 19. cxd5 {[%emt 0:00:09]} Rac8 {[%emt 0:01:08]} 20. Qd2 {[%emt 0:08:50]} Rfd8 {[%emt 0:04:23]} 21. Ne3 {[%emt 0:02:40]} b5 {[%emt 0:01:56]} 22. Rd1 {[%emt 0:03:12]} Ne8 {[%emt 0:03:33]} 23. Nf1 {[%emt 0:03:18]} Rd7 {[%emt 0:06:58]} 24. Qe3 {[%emt 0:00:51]} Qe7 {[%emt 0:01:24]} 25. Rfd2 {[%emt 0:07:08]} Nd6 {[%emt 0:00:50]} 26. Ng3 {[%emt 0:01:23]} Rdc7 {[%emt 0:00:44]} 27. Ne2 {[%emt 0:05:43]} Qh4 {[%emt 0:02:02]} 28. Qf2 {[%emt 0:00:28]} Qg5 {[%emt 0:08:32]} 29. Kf1 {[%emt 0:03:16]} f6 {[%emt 0:05:00]} 30. Ng1 {[%emt 0:04:17]} b4 {[%emt 0:36:32]} 31. Nh3 {[%emt 0:12:26]} Qh6 {[%emt 0:00:00]} 32. g5 {[%emt 0:01:10]} Qh5 {[%emt 0:00:00]} 33. Qg3 {[%emt 0:00:57]} Rc1 {[%emt 0:00:00]} 34. gxf6 {[%emt 0:00:39]} Nxe4 {[%emt 0:00:00]} 35. Qe1 {[%emt 0:00:18]} Nxd2+ {[%emt 0:00:00]} 36. Qxd2 {[%emt 0:00:01]} Rxd1+ {[%emt 0:00:00]} 37. Qxd1 {[%emt 0:00:00]} gxf6 {[%emt 0:00:00]} 38. Nf2 {[%emt 0:01:59]} Qg5 {[%emt 0:00:00]} 39. Nd3 {[%emt 0:01:45]} Qe3 {[%emt 0:00:00]} 40. Ne1 {[%emt 0:00:52]} Rc1 {[%emt 0:00:00]} 41. Qe2 {[%emt 0:30:35]} Bd3 {[%emt 0:35:30]} 0-1